Cogmind - Beta 16 @@@ ROGUE MODE // 2025.10.22 @ 20:29:38 Player: Beans Result: Self-destructed Performance ------------- Evolutions (5) 2500 Regions Visited (7) 1400 Robots Destroyed (10) 50 Value Destroyed (334) 334 Prototype IDs (2) 40 Alien Tech Used (0) 0 Bonus (500) 500 TOTAL SCORE: 4824 Bonus ------- Entered DSFs 500 Cogmind --------- Core Integrity 230/1000 Matter 133/300 Energy 87/100 System Corruption 3% Temperature Cool (0) Movement Hovering (70) Location -5/Factory Parts ------- > --- POWER (3) -------- (None) > --- PROPULSION (6) --- Gyrokinetic Inverter > --- UTILITY (6) ------ (None) > --- WEAPON (2) ------- (None) > --- INVENTORY (5) ---- F-cell Engine Cesium-ion Thruster Cooled Cesium-ion Thruster Advanced Sensor Array Plasma Rifle Peak State ------------ > --- POWER ------------ Micro Nuclear Core F-cell Engine > --- PROPULSION ------- Cesium-ion Thruster Field Propulsion Drive > --- UTILITY ---------- Advanced Sensor Array Signal Interpreter Transmission Jammer Improved Transmission Jammer > --- WEAPON ----------- (None) > --- INVENTORY -------- Cooled Cesium-ion Thruster Advanced Sensor Array Plasma Rifle [Rating: 36] Favorites ----------- Power F-cell Engine Engine F-cell Engine Power Core Micro Nuclear Core Propulsion Aluminum Leg Leg Aluminum Leg Wheel Armored Wheel Hover Unit Gyrokinetic Inverter Flight Unit Cesium-ion Thruster Utility Signal Interpreter Device Advanced Sensor Array Storage Small Storage Unit Processor Signal Interpreter Protection Light Armor Plating Weapon Grenade Launcher Energy Gun EM Pulse Gun Launcher Grenade Launcher Impact Weapon Heavy Flail Build | -11 -10 -10 -8 -7 -7 -6 -5 ------- Run | Yrd Mat Sub Mat Fac DSF Fac Fac Slots Evolved 10 | . . . 4 2 . 2 2 Power 2 | . . . . 1 . . 1 Propulsion 4 | . . . 2 . . 1 1 Utility 4 | . . . 2 1 . 1 . Weapon . | . . . . . . . . Parts Attached 37 | 7 . 2 7 1 3 12 5 Power 5 | 1 . . 1 1 . 1 1 Engine 3 | 1 . . . 1 . 1 . Core 2 | . . . 1 . . . 1 Reactor . | . . . . . . . . Propulsion 10 | 2 . . 1 . . 5 2 Treads . | . . . . . . . . Leg 3 | 2 . . 1 . . . . Wheel 2 | . . . . . . 2 . Hover 2 | . . . . . . 1 1 Flight 3 | . . . . . . 2 1 Utility 17 | 2 . 1 4 . 3 5 2 Device 10 | 1 . 1 2 . . 4 2 Storage 1 | 1 . . . . . . . Processor 4 | . . . . . 3 1 . Hackware . | . . . . . . . . Protection 2 | . . . 2 . . . . Artifact . | . . . . . . . . Weapon 5 | 2 . 1 1 . . 1 . Energy Gun 3 | 2 . . . . . 1 . Energy Cannon . | . . . . . . . . Ballistic Gun . | . . . . . . . . Ballistic Cannon . | . . . . . . . . Launcher 1 | . . 1 . . . . . Special Weapon . | . . . . . . . . Impact Weapon 1 | . . . 1 . . . . Slashing Weapon . | . . . . . . . . Piercing Weapon . | . . . . . . . . Special Melee Weapon . | . . . . . . . . Unidentified Prototypes 2 | . . . . . . 2 . Corrupted Parts 1 | 1 . . . . . . . System Corruption 5 | 5 . . . . . . . Parts Lost 21 | . . 2 1 . 9 2 7 Power 3 | . . . . . 1 1 1 Propulsion 4 | . . . 1 . 2 . 1 Utility 10 | . . . . . 4 1 5 Weapon 4 | . . 2 . . 2 . . Highest Loss Streak 9 | . . 2 1 . 9 2 7 To Critical Strikes . | . . . . . . . . Average Backups 4 | . 4 4 4 4 5 4 4 Power . | . 1 1 1 . 1 . . Propulsion 1 | . . . . 2 2 1 2 Utility 1 | . 1 2 2 2 2 2 1 Weapon . | . 1 1 . . . . . Tool/Special . | . . . . . . . . Unused Backups 6 | . 1 . 1 . . 1 3 Power . | . . . . . . . . Propulsion 1 | . . . . . . . 1 Utility 3 | . . . . . . 1 2 Weapon 2 | . 1 . 1 . . . . Tool/Special . | . . . . . . . . Average Slot Usage (%) 52 | . 100 77 73 70 51 34 37 Engine 6 | . 14 14 6 1 . 9 2 Core 1 | . . . 2 7 5 . 2 Leg 9 | . 28 28 22 15 10 . . Wheel 1 | . . . . . . 2 2 Flight 2 | . . . . . . 4 4 Device 16 | . 14 18 18 23 15 13 17 Processor 2 | . . . . . 2 4 4 Protection 2 | . . . 11 7 4 . . Energy Gun 2 | . 28 7 . . . 1 . Launcher 2 | . . 7 9 7 5 . . Peak Build Rating 36 | 9 9 9 20 21 22 29 36 Average Rating 19 | 5 9 7 14 20 15 19 28 On Entrance 11 | . 9 9 9 20 20 . 24 Avg Prop Armor Cover (%) . | . . . . . . . . Naked Turns 43 | . . . . . 20 23 . Heaviest Build 22 | 15 15 15 22 22 22 22 18 Greatest Support 33 | 20 20 20 33 23 23 12 13 Greatest Overweight (x) 4 | 1 . . . . 4 2 1 Average Overweight (x) . | . . . . . . . . Largest Inventory Capacity 8 | 8 8 8 5 5 5 5 5 Average Capacity 5 | 7 8 5 5 5 5 5 5 Most Carried 5 | 1 5 5 5 5 5 5 5 Average Carried 4 | . 4 4 4 4 5 4 4 Final Capacity 8 | 8 8 5 5 5 5 5 5 Final Carried 5 | 1 5 4 5 5 5 4 5 Class Distribution -------------------- 93% | Mutant 5% | Infiltrator-Mutant Dominant Class ---------------- Mutant | -10/Materials Mutant | -10/Subcaves Mutant | -8/Materials Mutant | -7/Factory Mutant | -7/DSF Mutant | -6/Factory Mutant | -5/Factory Resources | -11 -10 -10 -8 -7 -7 -6 -5 ----------- Run | Yrd Mat Sub Mat Fac DSF Fac Fac Matter Collected 559 | 219 . 114 63 . 13 49 101 Remotely . | . . . . . . . . Salvage Created 282 | 105 . 44 84 . . 49 . Parts 12 | 4 . 1 4 . . 3 . Haulers Intercepted . | . . . . . . . . Recyclers Shooed . | . . . . . . . . Parts Field Recycled 10 | . . . . . . 10 . Retrieved Matter 108 | . . . . . . 108 . Parts Self-Destructed 2 | . . 2 . . . . . Prevented . | . . . . . . . . Parts Restored . | . . . . . . . . Kills | -11 -10 -10 -8 -7 -7 -6 -5 ------- Run | Yrd Mat Sub Mat Fac DSF Fac Fac Combat Hostiles Destroyed 5 | . . 1 4 . . . . AOE 5 | . . 1 4 . . . . Classes Destroyed 7 | 2 . 1 3 . . 1 . Builder 1 | . . . . . . 1 . Tunneler 1 | 1 . . . . . . . Recycler 1 | 1 . . . . . . . Watcher 2 | . . . 1 . . 1 . Grunt 3 | . . . 3 . . . . Hunter 1 | . . . 1 . . . . Subdweller 1 | . . 1 . . . . . Best Kill Streak 2 | 2 . 1 2 . . 2 . Combat Bots Only 2 | . . 1 2 . . . . Max Kills in Single Turn 1 | 1 . 1 1 . . 1 . Gunslinging . | . . . . . . . . Exploded 1 | . . 1 1 . . . . Melee . | . . . . . . . . Uniques/NPCs Destroyed . | . . . . . . . . Combat | -11 -10 -10 -8 -7 -7 -6 -5 -------- Run | Yrd Mat Sub Mat Fac DSF Fac Fac Hostile Shots Fired 193 | . . 30 22 . 45 28 68 Missed 74 | . . 15 9 . 12 13 25 Hits 119 | . . 15 13 . 33 15 43 Projectile 119 | . . 15 13 . 33 15 43 AOE 3 | . . . . . . . 3 Critical Strikes 10 | . . 1 2 . 3 1 3 Damage Taken 2973 | . . 373 253 . 1006 227 1114 Core 1590 | . . 125 31 . 588 76 770 Absorbed by Shields . | . . . . . . . . Core Remaining (%) 70 | 100 . 50 94 . 16 91 . Volleys Fired 37 | 4 . 4 16 . . 13 . Largest 2 | 2 . 2 1 . . 1 . Hottest 80 | 80 . 80 30 . . 75 . Shots Fired 42 | 8 . 5 16 . . 13 . Gun 23 | 8 . 2 . . . 13 . Cannon . | . . . . . . . . Launcher 19 | . . 3 16 . . . . Special . | . . . . . . . . Kinetic . | . . . . . . . . Thermal 13 | . . . . . . 13 . Explosive 19 | . . 3 16 . . . . Electromagnetic 10 | 8 . 2 . . . . . Robot Hit Streak 4 | 4 . 2 4 . . 2 . Robot Miss Streak 3 | 1 . 1 2 . . 3 . Penetration Max . | . . . . . . . . Secondary Targets . | . . . . . . . . Shots Hit Robots 24 | 6 . 2 11 . . 5 . Core Hits 19 | 2 . 1 13 . . 3 . Critical Kills . | . . . . . . . . Critical Parts Destroyed . | . . . . . . . . Critical Strikes . | . . . . . . . . Melee Attacks . | . . . . . . . . Impact . | . . . . . . . . Slashing . | . . . . . . . . Piercing . | . . . . . . . . Sneak Attacks . | . . . . . . . . Combat Hostiles . | . . . . . . . . Follow-up Attacks . | . . . . . . . . Damage Inflicted 931 | 143 . 63 594 . . 131 . Guns 226 | 84 . 11 . . . 131 . Cannons . | . . . . . . . . Explosions 705 | 59 . 52 594 . . . . Melee . | . . . . . . . . Ramming . | . . . . . . . . Kinetic . | . . . . . . . . Thermal 190 | 59 . . . . . 131 . Explosive 646 | . . 52 594 . . . . Electromagnetic 95 | 84 . 11 . . . . . Impact . | . . . . . . . . Slashing . | . . . . . . . . Piercing . | . . . . . . . . Highest Corruption 5 | 5 5 5 . . . 2 3 Average Corruption 4 | 5 5 5 . . . 1 1 Corruption Purged . | . . . . . . . . Corruption Blocked . | . . . . . . . . Effects 15 | 1 4 9 . . . . 1 Message Errors 1 | . . . . . . . 1 Matter Fused 8 | 1 2 5 . . . . . Heat Flow Errors 1 | . . 1 . . . . . Energy Discharges 3 | . 1 2 . . . . . Data Loss (minor) 1 | . 1 . . . . . . Data Loss (major) 1 | . . 1 . . . . . Overload Shots . | . . . . . . . . Overflow Damage . | . . . . . . . . Projectiles . | . . . . . . . . Explosions . | . . . . . . . . Melee . | . . . . . . . . Knockbacks . | . . . . . . . . Impact . | . . . . . . . . Kinetic . | . . . . . . . . Secondary . | . . . . . . . . Self-Inflicted Damage . | . . . . . . . . Shots . | . . . . . . . . Rammed . | . . . . . . . . Targets Rammed . | . . . . . . . . Kicked . | . . . . . . . . Crushed . | . . . . . . . . Highest Temperature 239 | 72 . 239 9 . . 96 . Average Temperature 51 | 38 . 114 4 . . 43 . Received Heat Transfer 414 | . . 351 63 . . . . Siege Activations . | . . . . . . . . Martial Activations . | . . . . . . . . Shielding Activations . | . . . . . . . . Robots Disrupted . | . . . . . . . . Combat Hostiles . | . . . . . . . . Robots Corrupted . | . . . . . . . . Combat Hostiles . | . . . . . . . . Parts Fried . | . . . . . . . . Impact Corruptions . | . . . . . . . . Robots Melted . | . . . . . . . . Combat Hostiles . | . . . . . . . . Parts Melted 1 | . . . . . . 1 . Heat Transferred 350 | 50 . . . . . 300 . Parts Sabotaged . | . . . . . . . . Parts Stolen . | . . . . . . . . Parts Stripped . | . . . . . . . . Power Chain Reactions 2 | 2 . . . . . . . Alert | -11 -10 -10 -8 -7 -7 -6 -5 ------- Run | Yrd Mat Sub Mat Fac DSF Fac Fac Maximum Alert Level . | . . . . . . . . Low Security (%) 100 | 100 100 . 100 100 100 100 100 Level 1 . | . . . . . . . . Level 2 . | . . . . . . . . Level 3 . | . . . . . . . . Level 4 . | . . . . . . . . Level 5 . | . . . . . . . . High Security . | . . . . . . . . Max Security . | . . . . . . . . Peak Influence 85 | 10 5 . 85 35 10 15 15 Initial 35 | . . . . 35 10 . . Average 5 | 1 . . 21 26 5 1 . Influence Increases 302 | 10 5 . 194 . . 63 30 Destroy 0b10 Robot/C 80 | . . . 80 . . . . Destroy 0b10 Robot/NC 25 | 10 . . 5 . . 10 . Destroy Leader 24 | . . . 22 . . 2 . Successful Hack 37 | . 5 . 11 . . 21 . Disable Machine 45 | . . . 45 . . . . Destroy Structure 16 | . . . 16 . . . . Partial Spotted 45 | . . . 15 . . 15 15 Lose Combat Pursuer 30 | . . . . . . 15 15 Influence Decreases 302 | 10 5 . 117 62 15 63 30 Entered New Map 47 | . . . . 42 5 . . Time Decay 232 | 10 5 . 107 20 . 63 27 Lost Part 23 | . . . 10 . 10 . 3 Squads Dispatched 6 | . . . 1 . 1 2 2 Investigation 1 | . . . . . . 1 . Extermination 3 | . . . . . . 1 2 Reinforcement 2 | . . . 1 . 1 . . Assault . | . . . . . . . . Garrison . | . . . . . . . . Intercept . | . . . . . . . . Searches Triggered . | . . . . . . . . Construction Impeded . | . . . . . . . . Haulers Reinforced . | . . . . . . . . Active Scanning Responses . | . . . . . . . . Cargo Convoy Interrupts . | . . . . . . . . Stealth | -11 -10 -10 -8 -7 -7 -6 -5 --------- Run | Yrd Mat Sub Mat Fac DSF Fac Fac Distress Signals 1 | . . . . . . . 1 Communications Jammed 1 | . . . . . . . 1 Distress Signals 1 | . . . . . . . 1 Times Spotted 35 | . . 7 11 . 3 3 11 Peak Tracking Total 7 | . . 3 5 . 3 1 7 Tactical Retreats 2 | . . . . . . 1 1 Traps | -11 -10 -10 -8 -7 -7 -6 -5 ------- Run | Yrd Mat Sub Mat Fac DSF Fac Fac Traps Triggered 5 | . . . 1 . . 2 2 Indirectly . | . . . . . . . . Trap Hack Attempts . | . . . . . . . . Triggered . | . . . . . . . . Disarmed . | . . . . . . . . Reprogrammed . | . . . . . . . . Reused . | . . . . . . . . Traps Extracted . | . . . . . . . . Installed . | . . . . . . . . Triggered . | . . . . . . . . Machines | -11 -10 -10 -8 -7 -7 -6 -5 ---------- Run | Yrd Mat Sub Mat Fac DSF Fac Fac Machines Disabled 3 | . . . 3 . . . . Max in Single Turn 2 | . . . 2 . . . . Garrison Access 1 | . . . . . . 1 . Machines Repaired . | . . . . . . . . Machines Dismantled . | . . . . . . . . Machines Sabotaged . | . . . . . . . . Overloaded Fab Kills . | . . . . . . . . Hacking | -11 -10 -10 -8 -7 -7 -6 -5 --------- Run | Yrd Mat Sub Mat Fac DSF Fac Fac Machines Accessed 12 | . 2 . 2 1 . 5 2 Terminals 7 | . 2 . 2 1 . 2 . Fabricators 1 | . . . . . . . 1 Repair Stations . | . . . . . . . . Recycling Units 2 | . . . . . . 1 1 Scanalyzers 1 | . . . . . . 1 . Garrison Access 1 | . . . . . . 1 . Total Hacks 42 | . 12 . 8 3 . 16 3 Successful 19 | . 5 . 3 1 . 10 . Failed 23 | . 7 . 5 2 . 6 3 Catastrophic 4 | . . . . . . 3 1 Database Lockouts . | . . . . . . . . Manual 22 | . 8 . 8 . . 6 . Terminals 33 | . 12 . 8 3 . 10 . Fabricators 2 | . . . . . . . 2 Repair Stations . | . . . . . . . . Recycling Units 2 | . . . . . . 1 1 Scanalyzers 3 | . . . . . . 3 . Garrison Access 2 | . . . . . . 2 . Terminal Hacks 9 | . 3 . 2 1 . 3 . Record 1 | . . . . . . 1 . Robot Analysis 1 | . 1 . . . . . . Open DSF 1 | . . . . 1 . . . Terminal Index 3 | . 1 . 1 . . 1 . Alert Level 2 | . . . 1 . . 1 . Zone Layout 1 | . 1 . . . . . . Fabricator Hacks . | . . . . . . . . Repair Station Hacks . | . . . . . . . . Recycling Unit Hacks . | . . . . . . . . Scanalyzer 3 | . . . . . . 3 . Insert Component 1 | . . . . . . 1 . Analyze 1 | . . . . . . 1 . Retrieve Study 1 | . . . . . . 1 . Garrison Access Hacks 1 | . . . . . . 1 . Seal Access 1 | . . . . . . 1 . Unauthorized Hacks 6 | . 2 . 1 . . 3 . Terminals 5 | . 2 . 1 . . 2 . Botnet 5 | . 2 . 1 . . 2 . Fabricators . | . . . . . . . . Repair Stations . | . . . . . . . . Recycling Units 1 | . . . . . . 1 . Monitor 1 | . . . . . . 1 . Scanalyzers . | . . . . . . . . Garrison Access . | . . . . . . . . Data Cores Recovered . | . . . . . . . . Used . | . . . . . . . . Hacking Detections 10 | . 2 . 2 1 . 3 2 Full Trace Events 1 | . . . . . . 1 . Feedback Events . | . . . . . . . . Feedback Blocked . | . . . . . . . . Robot Schematics Acquired . | . . . . . . . . Robots Built . | . . . . . . . . Authchips . | . . . . . . . . Time . | . . . . . . . . Total Robot Build Rating . | . . . . . . . . Part Schematics Acquired 1 | . . . . . . 1 . Parts Built . | . . . . . . . . Authchips . | . . . . . . . . Time . | . . . . . . . . Total Part Build Rating . | . . . . . . . . Part Studies Acquired 1 | . . . . . . 1 . Parts Repaired . | . . . . . . . . Time . | . . . . . . . . Parts Recycled . | . . . . . . . . Recycled Matter . | . . . . . . . . Retrieved Matter . | . . . . . . . . Retrieved Components . | . . . . . . . . Parts Scanalyzed 1 | . . . . . . 1 . Part Schematics Acquired 1 | . . . . . . 1 . Parts Damaged 1 | . . . . . . 1 . Bothacking | -11 -10 -10 -8 -7 -7 -6 -5 ------------ Run | Yrd Mat Sub Mat Fac DSF Fac Fac Used RIF Installer . | . . . . . . . . Robots Hacked . | . . . . . . . . Non-combat . | . . . . . . . . Combat . | . . . . . . . . Robot Hacks Applied . | . . . . . . . . Relay Couplers Released . | . . . . . . . . Fabnet Peak Effective % . | . . . . . . . . Robots Rewired . | . . . . . . . . Allies Hacked . | . . . . . . . . Hacks Repelled . | . . . . . . . . Allies | -11 -10 -10 -8 -7 -7 -6 -5 -------- Run | Yrd Mat Sub Mat Fac DSF Fac Fac Total Allies . | . . . . . . . . Largest Group . | . . . . . . . . Highest-Rated Group . | . . . . . . . . Highest-Rated Ally . | . . . . . . . . Total Orders . | . . . . . . . . Ally Attacks . | . . . . . . . . Total Damage . | . . . . . . . . Kills . | . . . . . . . . Allies Corrupted . | . . . . . . . . Allies Melted . | . . . . . . . . Intel | -11 -10 -10 -8 -7 -7 -6 -5 ------- Run | Yrd Mat Sub Mat Fac DSF Fac Fac Active Infowar (turns) 2518 | 3 115 374 451 49 66 367 1093 Optics 317 | . . 120 197 . . . . Sensors 1440 | . . . . . . 367 1073 Terrain 1052 | 3 115 374 451 49 60 . . Traps 251 | . . . 136 49 66 . . Jamming 1386 | . . . . . . 293 1093 ECM 5 | . . . . . . . 5 Robot Analysis Total 1 | . 1 . . . . . . Derelict Logs Recovered . | . . . . . . . . Drone Launches . | . . . . . . . . Drone Recoveries . | . . . . . . . . Exploration | -11 -10 -10 -8 -7 -7 -6 -5 ------------- Run | Yrd Mat Sub Mat Fac DSF Fac Fac Turns Passed 2823 | 64 115 374 451 49 114 546 1110 Spaces Moved 2374 | 37 92 301 277 40 76 618 933 Core 102 | 6 . . . . 47 49 . Treads . | . . . . . . . . Legs 770 | 31 92 301 277 40 29 . . Wheels 383 | . . . . . . 163 220 Hover 14 | . . . . . . . 14 Flight 1105 | . . . . . . 406 699 Fastest Speed 32 | 50 120 120 120 120 50 32 37 Average Speed 77 | 110 120 120 120 120 91 61 53 Slowest Speed 250 | 120 120 120 120 120 250 195 105 Overloaded Moves . | . . . . . . . . Propulsion Burnouts . | . . . . . . . . Robots Hopped 6 | . . . . . . 2 4 Potential Cave-ins . | . . . . . . . . Cave-ins Triggered . | . . . . . . . . Exploration Rate (%) 23 | 4 20 27 27 1 67 15 25 Regions Visited 7 Branch Regions 1 Pre-discovered Areas . | . . . . . . . . Known Exits Taken 2 | . . . . 1 . 1 . Unknown Exits Taken 4 | 1 1 1 1 . . . . Scrap Searched . | . . . . . . . . Spaces Dug . | . . . . . . . . Terrain Destroyed 40 | 6 . 12 22 . . . . Melee . | . . . . . . . . Projectile . | . . . . . . . . AOE 40 | 6 . 12 22 . . . . Terrain Rammed . | . . . . . . . . Walls Destroyed . | . . . . . . . . Machines Disabled . | . . . . . . . . Actions | -11 -10 -10 -8 -7 -7 -6 -5 --------- Run | Yrd Mat Sub Mat Fac DSF Fac Fac Total 3303 | 49 97 309 379 41 117 771 1540 Wait 779 | 1 . 2 73 . 38 93 572 Move 2355 | 36 91 300 276 39 75 613 925 Hop 6 | . . . . . . 2 4 Pick Up 15 | 1 5 . 2 . . 4 3 Fast Attach 30 | 7 . 1 6 . 4 8 4 Attach 9 | . . 1 . 1 . 5 2 Detach 8 | . . . 1 1 . 4 2 Swap 3 | . . . 1 . . 1 1 Drop 15 | . 1 1 4 . . 5 4 Fire 37 | 4 . 4 16 . . 13 . Melee . | . . . . . . . . Ram . | . . . . . . . . Kick . | . . . . . . . . Crush . | . . . . . . . . Escape Stasis 46 | . . . . . . 23 23 Rewire . | . . . . . . . . Trap . | . . . . . . . . Miscellaneous . | . . . . . . . . Route ------- -11/Scrapyard -10/Materials -10/Subcaves -8/Materials -7/Factory -7/DSF -6/Factory -5/Factory History --------- Turn | Location | Event 28 | -11/Scrapyard | Discovered new exit (range 16) 65 | -11/Scrapyard | Entered Materials 71 | -10/Materials | Discovered new exit (range 13) 180 | -10/Materials | Entered Subcaves 181 | -10/Subcaves | Ambushed by Subdwellers from Twisted Machinery 181 | -10/Subcaves | Approached by a straggling Scientist 234 | -10/Subcaves | Ambushed by swarm of Subdwellers 301 | -10/Subcaves | Build established: Mutant 532 | -10/Subcaves | Discovered new exit (range 19) 554 | -10/Subcaves | Entered Materials 554 | -8/Materials | Evolved 4 slots: Propulsion x2, Utility x2 982 | -8/Materials | Discovered new exit (range 13) 1005 | -8/Materials | Entered Factory 1005 | -7/Factory | Evolved 2 slots: Power x1, Utility x1 1053 | -7/Factory | Identified exit to DSF 1054 | -7/Factory | Entered DSF 1128 | -7/DSF | Additional patrols routed to DSF 1148 | -7/DSF | Core integrity fell below 50% 1148 | -7/DSF | Released all parts (3) 1155 | -7/DSF | Core integrity fell below 20% 1160 | -7/DSF | Discovered new exit (range 15) 1168 | -7/DSF | Entered Factory 1168 | -6/Factory | Evolved 2 slots: Propulsion x1, Utility x1 1176 | -6/Factory | Lost 9 parts (1p2n4u2w) 1245 | -6/Factory | Spotted B-75 Beast 1305 | -6/Factory | Discovered new exit (range 14) 1713 | -6/Factory | Identified exit to Factory 1714 | -6/Factory | Entered another Factory area 1714 | -5/Factory | Evolved 2 slots: Power x1, Propulsion x1 2817 | -5/Factory | Core integrity fell below 50% 2824 | -5/Factory | Self-destructed Last Messages --------------- 02798_ Adv. Sensor Array destroyed. 02799_ K-01 Serf collects debris. 02799_ Slug penetrates H-66 Slayer. 02799_ Slug penetrates Wall. 02804_ UE22JTFJ:R>J7:E//CPUWQJ:OSL9,9VKS 02814_ Nuclear Reactor explodes. 02814_ Fabricator disabled. 02815_ Penetrated by Slug. 02816_ Slug penetrates Nuclear Reactor. 02816_ Nuclear Reactor explodes. 02816_ H-66 Slayer destroyed. 02819_ Signal Interpreter destroyed. 02820_ Penetrated by Slug. Map ----- +----------------------------------------------------+ | #??????????????????????????????????????????? | | #??????????????????????????????????????????? | | #??????????????????????????????????????????? | | #??????????????????????????????????????????? | | #??????????????????????????????????????????? | | #??????????????????????????????????????????? | | #??????????????????????????????????????????? | | #######??????????????????????????????????????????? | | ?????????????????????????????????????????????????? | | ?????????????????????????????????????????????????? | | ?????????????????????????????????????????????????? | | ?????????????????????????????????????????????????? | | ######################################+??????????? | | ?????????? | | ?????????? | | ?????????? | | * ?????????? | | !%= %* ?????????? | | ####+###################+##############??????????? | | ?? ???????????# #?????????????????? | | ?????????# ""#?????????????????? | | #???????# h [ F"#?????????????????? | | #???????# p%] "#?????????????????? | | """ """ #???????# = " #?????????????????? | | """ """ #???????#! # """????????????? | | """ """ #???????# @ """????????????? | | #???????# """????????????? | | ?"" ""? #???????# ] uu ??????????? | | ??" ???? #???????# """ ""?????????? | | ??" ????? #???????# ! ""?????????????? | | ?? ??????????????# # ""?????????????? | | ??#???????????????## #? ?????????????? | | ???????????????????# ###??###????????????? | | ???????????????????#### # ##???????????????????? | | ??????????????????????####?##????????????????????? | | ?????????????????????????????????????????????????? | | ?????????????????????????????????????????????????? | | ?????????????????????????????????????????????????? | | ?????????????????????????????????????????????????? | | ?????????????????????????????????????????????????? | | ?????????????????????????????????????????????????? | | ?????????????????????????????????????????????????? | | ?????????????????????????????????????????????????? | | ?????????????????????????????????????????????????? | | ?????????????????????????????????????????????????? | | ?????????????????????????????????????????????????? | | ?????????????????????????????????????????????????? | | ?????????????????????????????????????????????????? | | ?????????????????????????????????????????????????? | | ?????????????????????????????????????????????????? | +----------------------------------------------------+ Best States ------------- Heat Dissipation 40 Energy Generation 24 Energy Capacity 525 Matter Stores 300 Matter Capacity 300 Sight Range 21 Robot Scan Range 16 Terrain Scan Range 16 Terrain Scan Density 10 Jamming Range 14 Armor Coverage 300 Evasion (%) 63 Melee Accuracy 16 Item Schematics ----------------- Cld. Cesium-ion Thruster | -6/Factory | Scanalyzed Robot Schematics ------------------ None Fabricated ------------ Nothing Repaired ---------- Nothing Studied --------- Cesium-ion Thruster | -6/Factory | Hacked Alien Tech Used ----------------- None Achievements -------------- A Problem For Future Me Item+ Spot Them First Throw Away The Key Challenges ------------ None Game ------ Seed CoolingFlakRailcannon Manual? 0 Play Time 00:56:49 Cumulative 86.4 hours Start 2025.10.22 @ 19:33:44 End 2025.10.22 @ 20:29:38 Sessions 1 Manual Loads 0 Difficulty Rogue Special Mode None Game No. 84 Rogue 84 Adventurer 0 Explorer 0 Win Type - Total 0 Types 0/0/0/0/0/0/0/0/0/0 Lore% 15 Gallery% 33 Achievement% 21 Wizard Run 0 Options --------- Layout 1 ASCII 1 Keyboard 1 Movement Vi Keybinds 1 Fullscreen 1 Font 32/SmallcapsGlow Map View 50x35 Zoom Use 0% Tactical HUD 1 Map Filters NONE Filters NONE Steam 1 RUN: 82bde8e7-635d-4649-a66d-d892aa8ad109